Cogmind - Beta 15 @@@ ROGUE MODE // 2025.06.01 @ 20:36:23 // Winter2019/RPGLIKE Player: Jack Result: Destroyed by Y-54 Guardian with Gatling Laser Performance ------------- Evolutions (3) 1500 Regions Visited (4) 800 Robots Destroyed (73) 365 Value Destroyed (1914) 1914 Prototype IDs (1) 20 Alien Tech Used (0) 0 Bonus (167) 167 TOTAL SCORE: 4766 Bonus ------- High Alert Combat Kills 167 Cogmind --------- Core Integrity 0/800 Matter 285/300 Energy 149/160 System Corruption 0% Temperature Cool (15) Movement Flying (32) Location -7/Factory Parts ------- > --- POWER (1) -------- Light Nuclear Core > --- PROPULSION (2) --- Cesium-ion Thruster Cesium-ion Thruster > --- UTILITY (1) ------ (None) > --- WEAPON (4) ------- Small Laser Small Laser Small Laser > --- INVENTORY (3) ---- Protomatter-4 VTOL Module VTOL Module Peak State ------------ > --- POWER ------------ Light Nuclear Core > --- PROPULSION ------- VTOL Module VTOL Module > --- UTILITY ---------- Hardened Medium Armor Plating > --- WEAPON ----------- Small Laser Small Laser Small Laser Small Laser > --- INVENTORY -------- (None) [Rating: 14] Favorites ----------- Power Light Ion Engine Engine Light Ion Engine Power Core Light Nuclear Core Propulsion Flight Unit Leg Aluminum Leg Flight Unit Flight Unit Utility Light Armor Plating Protection Light Armor Plating Weapon Small Laser Energy Gun Small Laser Build | -11 -10 -9 -8 -7 ------- Run | Yrd Mat Mat Mat Fac Slots Evolved 4 | 2 . 2 . . Power . | . . . . . Propulsion 1 | 1 . . . . Utility . | . . . . . Weapon 3 | 1 . 2 . . Parts Attached 28 | 2 5 9 6 6 Power 5 | . . 2 2 1 Engine 4 | . . 2 2 . Core 1 | . . . . 1 Reactor . | . . . . . Propulsion 13 | . 4 2 3 4 Treads . | . . . . . Leg 1 | . 1 . . . Wheel . | . . . . . Hover . | . . . . . Flight 12 | . 3 2 3 4 Utility 3 | . . 1 1 1 Device . | . . . . . Storage . | . . . . . Processor . | . . . . . Hackware . | . . . . . Protection 3 | . . 1 1 1 Artifact . | . . . . . Weapon 7 | 2 1 4 . . Energy Gun 7 | 2 1 4 . . Energy Cannon . | . . . . . Ballistic Gun . | . . . . . Ballistic Cannon . | . . . . . Launcher . | . . . . . Special Weapon . | . . . . . Impact Weapon . | . . . . . Slashing Weapon . | . . . . . Piercing Weapon . | . . . . . Special Melee Weapon . | . . . . . Unidentified Prototypes 1 | . . 1 . . Parts Lost 3 | . 1 . 1 1 Power . | . . . . . Propulsion 1 | . 1 . . . Utility 1 | . . . 1 . Weapon 1 | . . . . 1 Highest Loss Streak 1 | . 1 . 1 1 To Critical Strikes . | . . . . . Average Backups . | . . . . . Power . | . . . . . Propulsion . | . . . . . Utility . | . . . . . Weapon . | . . . . . Tool/Special . | . . . . . Unused Backups . | . . . . . Power . | . . . . . Propulsion . | . . . . . Utility . | . . . . . Weapon . | . . . . . Tool/Special . | . . . . . Average Slot Usage (%) 82 | . 50 83 97 87 Engine 7 | . . 7 12 3 Core 1 | . . . . 8 Flight 24 | . 18 26 25 25 Protection 5 | . . 6 9 . Energy Gun 44 | . 31 41 50 50 Peak Build Rating 14 | 2 4 10 8 14 Average Rating 6 | . 3 6 7 10 On Entrance 4 | . 2 4 8 7 Naked Turns . | . . . . . Heaviest Build 10 | 3 3 10 10 9 Greatest Support 15 | 3 10 13 13 15 Greatest Overweight (x) . | . . . . . Average Overweight (x) . | . . . . . Largest Inventory Capacity 3 | . . . . 3 Average Capacity . | . . . . 1 Most Carried 3 | . . . . 3 Average Carried . | . . . . . Final Capacity 3 | . . . . 3 Final Carried 3 | . . . . 3 Class Distribution -------------------- 57% | Hacker-Gunner 20% | Hacker-Mutant 14% | Hacker-Sprinter 6% | Scavenger-Gunner Dominant Class ---------------- Hacker-Mutant | -10/Materials Hacker-Gunner | -9/Materials Hacker-Gunner | -8/Materials Hacker-Sprinter | -7/Factory Resources | -11 -10 -9 -8 -7 ----------- Run | Yrd Mat Mat Mat Fac Matter Collected 492 | 200 87 100 55 50 Remotely . | . . . . . Salvage Created 1877 | . 119 415 994 349 Parts 141 | . 19 29 66 27 Haulers Intercepted . | . . . . . Recyclers Shooed . | . . . . . Parts Field Recycled . | . . . . . Retrieved Matter . | . . . . . Parts Self-Destructed . | . . . . . Prevented . | . . . . . Kills | -11 -10 -9 -8 -7 ------- Run | Yrd Mat Mat Mat Fac Combat Hostiles Destroyed 68 | . 9 14 32 13 Guns 68 | . 9 14 32 13 Classes Destroyed 12 | . 2 2 5 3 Tunneler 1 | . . 1 . . Recycler 1 | . . . 1 . Operator 2 | . . . 1 1 Watcher 1 | . . . 1 . Swarmer 38 | . 6 10 15 7 Grunt 16 | . 3 1 9 3 Brawler 1 | . . . 1 . Duelist 1 | . . . . 1 Protector 1 | . . . 1 . Sentry 9 | . . 3 6 . Hunter 1 | . . . . 1 Programmer 1 | . . . . 1 Best Kill Streak 11 | . 3 5 11 5 Combat Bots Only 8 | . 3 4 8 5 Max Kills in Single Turn 2 | . 1 1 2 1 Gunslinging 1 | . . . 1 . Exploded . | . . . . . Melee . | . . . . . Uniques/NPCs Destroyed . | . . . . . Combat | -11 -10 -9 -8 -7 -------- Run | Yrd Mat Mat Mat Fac Hostile Shots Fired 436 | . 85 57 119 175 Missed 183 | . 34 19 47 83 Hits 253 | . 51 38 72 92 Melee 2 | . . . 2 . Projectile 251 | . 51 38 70 92 Critical Strikes 5 | . 1 1 3 . Damage Taken 2934 | . 432 423 956 1123 Core 2340 | . 377 344 712 907 Absorbed by Shields . | . . . . . Redirected to Core 1653 | . 162 251 538 702 Core Remaining (%) 65 | 100 70 20 72 . Volleys Fired 206 | . 31 55 74 46 Largest 4 | . 2 4 4 4 Hottest 160 | . 90 160 160 160 Shots Fired 709 | . 60 170 296 183 Gun 709 | . 60 170 296 183 Cannon . | . . . . . Launcher . | . . . . . Special . | . . . . . Kinetic . | . . . . . Thermal 709 | . 60 170 296 183 Explosive . | . . . . . Electromagnetic . | . . . . . Robot Hit Streak 23 | . 7 11 23 22 Robot Miss Streak 4 | . 3 4 3 3 Penetration Max . | . . . . . Secondary Targets 6 | . 1 . 3 2 Max Gunslinging Chain 1 | . 1 . 1 1 Shots Hit Robots 381 | . 32 44 181 124 Core Hits 141 | . 12 19 69 41 Critical Kills . | . . . . . Critical Parts Destroyed . | . . . . . Critical Strikes . | . . . . . Melee Attacks . | . . . . . Impact . | . . . . . Slashing . | . . . . . Piercing . | . . . . . Sneak Attacks . | . . . . . Combat Hostiles . | . . . . . Follow-up Attacks . | . . . . . Damage Inflicted 4235 | . 362 499 1984 1390 Guns 4227 | . 354 499 1984 1390 Cannons . | . . . . . Explosions . | . . . . . Melee . | . . . . . Ramming 8 | . 8 . . . Kinetic . | . . . . . Thermal 4227 | . 354 499 1984 1390 Explosive . | . . . . . Electromagnetic . | . . . . . Impact . | . . . . . Slashing . | . . . . . Piercing . | . . . . . Highest Corruption 2 | . 2 . . . Average Corruption 2 | . 2 . . . Corruption Purged . | . . . . . Corruption Blocked . | . . . . . Effects 6 | . 6 . . . Message Errors 1 | . 1 . . . Matter Fused 1 | . 1 . . . Energy Discharges 1 | . 1 . . . Data Loss (minor) 3 | . 3 . . . Overload Shots . | . . . . . Overflow Damage . | . . . . . Projectiles . | . . . . . Explosions . | . . . . . Melee . | . . . . . Knockbacks . | . . . . . Impact . | . . . . . Kinetic . | . . . . . Secondary . | . . . . . Self-Inflicted Damage 3 | . 3 . . . Shots . | . . . . . Rammed 2 | . 2 . . . Targets Rammed 2 | . 2 . . . Kicked . | . . . . . Crushed . | . . . . . Highest Temperature 313 | . 72 313 40 36 Average Temperature 32 | . 28 72 9 8 Received Heat Transfer 741 | . 36 102 378 225 Siege Activations . | . . . . . Martial Activations . | . . . . . Shielding Activations . | . . . . . Robots Disrupted . | . . . . . Combat Hostiles . | . . . . . Robots Corrupted . | . . . . . Combat Hostiles . | . . . . . Parts Fried . | . . . . . Impact Corruptions . | . . . . . Robots Melted . | . . . . . Combat Hostiles . | . . . . . Parts Melted 25 | . 3 5 8 9 Heat Transferred 9449 | . 848 1100 4401 3100 Parts Sabotaged . | . . . . . Parts Stolen . | . . . . . Parts Stripped . | . . . . . Power Chain Reactions . | . . . . . Alert | -11 -10 -9 -8 -7 ------- Run | Yrd Mat Mat Mat Fac Maximum Alert Level 2 | . . 1 2 2 Low Security (%) 36 | 100 100 46 15 . Level 1 34 | . . 53 40 32 Level 2 28 | . . . 43 67 Level 3 . | . . . . . Level 4 . | . . . . . Level 5 . | . . . . . High Security . | . . . . . Max Security . | . . . . . Peak Influence 662 | . 145 325 662 483 Initial 293 | . . 56 104 293 Average 282 | . 49 189 414 401 Influence Increases 1905 | . 276 429 870 330 Destroy 0b10 Robot/C 1340 | . 180 280 620 260 Destroy 0b10 Robot/NC 30 | . . 5 20 5 Destroy Leader 262 | . 20 60 132 50 Successful Hack 17 | . . 9 8 . Destroy Structure 1 | . 1 . . . Partial Spotted 45 | . 15 15 . 15 Lose Combat Pursuer 210 | . 60 60 90 . Influence Decreases 1472 | . 141 317 471 543 Entered New Map 575 | . . 79 143 353 Time Decay 867 | . 131 238 318 180 Lost Part 30 | . 10 . 10 10 Squads Dispatched 7 | . 1 . 3 3 Investigation 1 | . 1 . . . Extermination 1 | . . . . 1 Reinforcement 2 | . . . 1 1 Assault 2 | . . . 2 . Garrison 1 | . . . . 1 Intercept . | . . . . . Searches Triggered . | . . . . . Construction Impeded . | . . . . . Haulers Reinforced . | . . . . . Active Scanning Responses . | . . . . . Cargo Convoy Interrupts . | . . . . . Stealth | -11 -10 -9 -8 -7 --------- Run | Yrd Mat Mat Mat Fac Distress Signals 1 | . 1 . . . Communications Jammed . | . . . . . Distress Signals . | . . . . . Times Spotted 106 | . 18 19 47 22 Peak Tracking Total 8 | . 6 4 8 6 Tactical Retreats 9 | . 3 2 4 . Traps | -11 -10 -9 -8 -7 ------- Run | Yrd Mat Mat Mat Fac Traps Triggered 2 | . 2 . . . Indirectly . | . . . . . Trap Hack Attempts . | . . . . . Triggered . | . . . . . Disarmed . | . . . . . Reprogrammed . | . . . . . Reused . | . . . . . Traps Extracted . | . . . . . Installed . | . . . . . Triggered . | . . . . . Machines | -11 -10 -9 -8 -7 ---------- Run | Yrd Mat Mat Mat Fac Machines Disabled . | . . . . . Max in Single Turn . | . . . . . Garrison Access 1 | . . . 1 . Machines Repaired . | . . . . . Machines Dismantled . | . . . . . Machines Sabotaged . | . . . . . Overloaded Fab Kills . | . . . . . Hacking | -11 -10 -9 -8 -7 --------- Run | Yrd Mat Mat Mat Fac Machines Accessed 8 | . 1 3 4 . Terminals 7 | . 1 3 3 . Fabricators . | . . . . . Repair Stations . | . . . . . Recycling Units . | . . . . . Scanalyzers . | . . . . . Garrison Access 1 | . . . 1 . Total Hacks 14 | . 2 6 6 . Successful 8 | . 1 2 5 . Failed 6 | . 1 4 1 . Catastrophic 1 | . . 1 . . Database Lockouts . | . . . . . Manual 12 | . 2 6 4 . Terminals 12 | . 2 6 4 . Fabricators . | . . . . . Repair Stations . | . . . . . Recycling Units . | . . . . . Scanalyzers . | . . . . . Garrison Access 2 | . . . 2 . Terminal Hacks 3 | . 1 1 1 . Part Schematic 1 | . . . 1 . Branch Access Points 1 | . . 1 . . Registered Components 1 | . 1 . . . Fabricator Hacks . | . . . . . Repair Station Hacks . | . . . . . Recycling Unit Hacks . | . . . . . Scanalyzer . | . . . . . Garrison Access Hacks 1 | . . . 1 . Seal Access 1 | . . . 1 . Unauthorized Hacks 4 | . . 1 3 . Terminals 4 | . . 1 3 . Assimilate 1 | . . 1 . . Botnet 3 | . . . 3 . Fabricators . | . . . . . Repair Stations . | . . . . . Recycling Units . | . . . . . Scanalyzers . | . . . . . Garrison Access . | . . . . . Data Cores Recovered . | . . . . . Used . | . . . . . Hacking Detections 3 | . . 1 2 . Full Trace Events . | . . . . . Feedback Events . | . . . . . Feedback Blocked . | . . . . . Robot Schematics Acquired . | . . . . . Robots Built . | . . . . . Authchips . | . . . . . Time . | . . . . . Total Robot Build Rating . | . . . . . Part Schematics Acquired 1 | . . . 1 . Parts Built . | . . . . . Authchips . | . . . . . Time . | . . . . . Total Part Build Rating . | . . . . . Parts Repaired . | . . . . . Time . | . . . . . Parts Recycled . | . . . . . Recycled Matter . | . . . . . Retrieved Matter . | . . . . . Retrieved Components . | . . . . . Parts Scanalyzed . | . . . . . Part Schematics Acquired . | . . . . . Parts Damaged . | . . . . . Bothacking | -11 -10 -9 -8 -7 ------------ Run | Yrd Mat Mat Mat Fac Used RIF Installer . | . . . . . Robots Hacked . | . . . . . Non-combat . | . . . . . Combat . | . . . . . Robot Hacks Applied . | . . . . . Relay Couplers Released . | . . . . . Fabnet Peak Effective % . | . . . . . Robots Rewired . | . . . . . Allies Hacked . | . . . . . Hacks Repelled . | . . . . . Allies | -11 -10 -9 -8 -7 -------- Run | Yrd Mat Mat Mat Fac Total Allies 1 | . . 1 . . Largest Group 1 | . . 1 . . Highest-Rated Group 10 | . . 10 . . Highest-Rated Ally 10 | . . 10 . . Total Orders 1 | . . 1 . . STAY 1 | . . 1 . . Ally Attacks . | . . . . . Total Damage . | . . . . . Kills . | . . . . . Allies Corrupted . | . . . . . Allies Melted . | . . . . . Intel | -11 -10 -9 -8 -7 ------- Run | Yrd Mat Mat Mat Fac Active Infowar (turns) . | . . . . . Robot Analysis Total . | . . . . . Derelict Logs Recovered . | . . . . . Drone Launches . | . . . . . Drone Recoveries . | . . . . . Exploration | -11 -10 -9 -8 -7 ------------- Run | Yrd Mat Mat Mat Fac Turns Passed 1964 | 29 350 507 701 377 Spaces Moved 2390 | 52 437 653 815 433 Core 203 | 52 151 . . . Treads . | . . . . . Legs 1 | . 1 . . . Wheels . | . . . . . Hover . | . . . . . Flight 2186 | . 285 653 815 433 Fastest Speed 32 | 50 37 37 37 32 Average Speed 37 | 50 42 37 37 33 Slowest Speed 120 | 50 120 37 37 37 Overloaded Moves . | . . . . . Propulsion Burnouts . | . . . . . Robots Hopped 23 | . . 9 8 6 Potential Cave-ins . | . . . . . Cave-ins Triggered . | . . . . . Exploration Rate (%) 31 | 3 46 34 61 11 Regions Visited 4 Branch Regions . Pre-discovered Areas . | . . . . . Known Exits Taken . | . . . . . Unknown Exits Taken 4 | 1 1 1 1 . Scrap Searched . | . . . . . Spaces Dug . | . . . . . Terrain Destroyed . | . . . . . Melee . | . . . . . Projectile . | . . . . . AOE . | . . . . . Terrain Rammed . | . . . . . Walls Destroyed . | . . . . . Machines Disabled . | . . . . . Actions | -11 -10 -9 -8 -7 --------- Run | Yrd Mat Mat Mat Fac Total 2948 | 53 538 787 1023 547 Wait 252 | . 49 71 86 46 Move 2340 | 51 436 634 798 421 Hop 23 | . . 9 8 6 Pick Up 1 | . . . . 1 Fast Attach 14 | 2 5 6 . 1 Attach . | . . . . . Detach . | . . . . . Swap 17 | . 1 4 6 6 Drop 20 | . 3 6 6 5 Fire 206 | . 31 55 74 46 Melee . | . . . . . Ram 2 | . 2 . . . Kick . | . . . . . Crush . | . . . . . Escape Stasis . | . . . . . Rewire . | . . . . . Trap . | . . . . . Miscellaneous 73 | . 11 2 45 15 Route ------- -11/Scrapyard -10/Materials (discovered 2 exits: *Mat / [*Min]) -9/Materials (discovered 3 exits: *Mat / Min x2) -8/Materials (discovered 3 exits: *Fac x3) -7/Factory History --------- Turn | Location | Event 4 | -11/Scrapyard | Discovered new exit (range 16) 18 | -11/Scrapyard | Upgraded with Propulsion slot (x1) 18 | -11/Scrapyard | Upgraded with Weapon slot (x1) 30 | -11/Scrapyard | Entered Materials 82 | -10/Materials | Discovered new exit (range 15) 106 | -10/Materials | Discovered new exit (range 10) 331 | -10/Materials | Build established: Hacker-Mutant 380 | -10/Materials | Entered another Materials area 382 | -9/Materials | Reached level 2 387 | -9/Materials | Upgraded with Weapon slot (x1) 426 | -9/Materials | Identified exit to Mines 529 | -9/Materials | Core integrity fell below 50% 534 | -9/Materials | Reached level 3 556 | -9/Materials | Upgraded with Weapon slot (x1) 608 | -9/Materials | Discovered new exit (range 10) 887 | -9/Materials | Entered another Materials area 888 | -8/Materials | Core integrity fell below 50% 889 | -8/Materials | Reached level 4 908 | -8/Materials | Core integrity fell below 20% 913 | -8/Materials | Reached level 5 933 | -8/Materials | Discovered new exit (range 5) 1036 | -8/Materials | Build established: Hacker-Gunner 1213 | -8/Materials | Reached level 6 1287 | -8/Materials | First assault squad dispatched 1322 | -8/Materials | Destroyed 8 combat bots 1334 | -8/Materials | Discovered new exit (range 4) 1391 | -8/Materials | Reached level 7 1499 | -8/Materials | Discovered new exit (range 16) 1588 | -8/Materials | Entered Factory 1590 | -7/Factory | Reached level 8 1694 | -7/Factory | Core integrity fell below 50% 1736 | -7/Factory | Core integrity fell below 20% 1736 | -7/Factory | Reached level 9 1945 | -7/Factory | Garrison activated, responded to threat 1965 | -7/Factory | Destroyed by Y-54 Guardian with Gatling Laser Last Messages --------------- R-06 Scavenger collects Particle Gun. Particle Gun melted. Lgt. Nuclear Core melted. G-47 Trooper destroyed. K-01 Serf collects debris. Used Protomatter to restore core integrity (+126, depleted) ALERT: Potential suspicious activity detected, Programmers report to Factory Zone 7X. Y-54 Guardian calls for garrison reinforcements. ALERT: Activating Garrison Access F002. Y-54 Guardian heat damages Imp. Deuterium Engine. Y-54 Guardian heat damages Imp. Deuterium Engine, Flak Gun, Imp. Heat Sink, Imp. Light Armor Plating. Y-54 Guardian heat damages Imp. Deuterium Engine, Lgt. Treads, Imp. Heat Sink, Imp. Light Armor Plating. Y-54 Guardian destroyed. K-01 Serf collects debris. Slug penetrates Wall. Sml. Laser destroyed. Slug penetrates Wall. Map ----- +----------------------------------------------------+ | ?????????????????????????????????????????????????? | | ?????????????????????????????????????????????????? | | ?????????????????????????????????????????????????? | | ?????????????????????????????????????????????????? | | ?????????????????????????????????????????????????? | | ?????????????????????????????????????????????????? | | ?????????????????????????????????????????????????? | | ?????????????????????????????????????????????????? | | ?????????????????????????????????????????????????? | | ?????????????????????????????????????????????????? | | ?????????????? ??????????????????????????????????? | | ?????????????" ??????????????????????????????????? | | ????????????? ??????????????????????????????????? | | ?????????"???" ??????????????????????????????????? | | ????????"" """ ?????????????????????????????????? | | ???????""" """ ???????????????####??????????????? | | ??????? ??????????????? #??????????????? | | ???????? ?????????????? #??????????????? | | ???????? ?????????????? #??????????????? | | ????????? ^ ????????????? #??????????????? | | ???????# ^ ############? #??????????????? | | ???????# """g!hY # #??????????????? | | ??????## """ g # #??????????????? | | ??????+ """ p #??????????????? | | ???????# r t # #??????????????? | | ???????# % @ # #??????????????? | | ????????########+######### #? #??????????????? | | ?????????????? = ??????# #? #??????????????? | | ?????????????#=![ "????# #?? #??????????????? | | ?????????????#!![ """??# #?? #??????????????? | | ?????????????#![ S"#?# #???########+########## | | ?????????????# """#?# #???????? | | ?????????????# = """#?# #?????????? | | ?????????????# #?# #???????????? | | ?????????????# ??# #?????????????? | | ?????????????###### ###??#/#########???????? ? | | ???????????????????##????# ] #??????####+### | | ?????????????????????????# #??????# # | | ?????????????????????????# #??????# # | | ?????????????????????????# / ## # | | ?????????????????????????# """ """ # ##! # | | ?????????????????????????# """ """ # ## ! # | | ?????????????????????????# """ """ # ## # | | ?????????????????????????# # ## # | | ?????????????????????????##+######## ## # | | ??????????????????????????# #??????# ## # | | ??????????????????????????# ######## ## # | | ??????????????????????????# ## + | | ???????????????############+# ## # | | ???????????????# # % ## # | +----------------------------------------------------+ Best States ------------- Heat Dissipation 61 Energy Generation 14 Energy Capacity 280 Matter Stores 300 Matter Capacity 300 Sight Range 16 Terrain Scan Density 10 Armor Coverage 225 Evasion (%) 63 Offensive Hacking 20 Item Schematics ----------------- Hacking Suite | -8/Materials | Hacked Robot Schematics ------------------ None Fabricated ------------ Nothing Repaired ---------- Nothing Alien Tech Used ----------------- None Achievements -------------- None Challenges ------------ None RPGLIKE | -11 -10 -9 -8 -7 --------- Run | Yrd Mat Mat Mat Fac Levels Raised 8 | . . 2 4 2 XP Earned 15579 | 3000 1000 3200 5296 3083 XP Spent 7260 | 3000 . 2600 160 1500 Upgrades 22 | 6 . 9 4 3 Propulsion Slot 1 | 1 . . . . Weapon Slot 3 | 1 . 2 . . Core Integrity 4 | . . . 4 . Heat Dissipation 6 | . . 6 . . Mass Support 1 | . . 1 . . Inventory Capacity 3 | . . . . 3 Hack Attack % 4 | 4 . . . . Protomatter Created 759 | . 100 54 432 173 Integrity Restored 1533 | . 201 45 963 324 Core 1533 | . 201 45 963 324 Protomatter Decayed 58 | . 33 12 13 . Game ------ Seed DiametricExoskeletonDevice Manual? 0 Play Time 00:26:20 Cumulative 236.0 hours Start 2025.06.01 @ 19:41:28 End 2025.06.01 @ 20:36:23 Sessions 1 Manual Loads 0 Difficulty Rogue Special Mode Winter2019/RPGLIKE Game No. 235 Rogue 46 Adventurer 177 Explorer 12 Win Type - Total 63 Types 18/1/16/2/12/0/4/5/0/5 Lore% 52 Gallery% 51 Achievement% 69 Wizard Run 0 Options --------- Layout 0 ASCII 0 Keyboard 0 Movement Numpad Keybinds 0 Fullscreen 2 Font 12/Smallcaps Map View 83x54 Zoom Use 0% Tactical HUD 0 Map Filters NONE Filters NONE Steam 1 RUN: 1e7e6057-bc64-4623-9080-f768492827a0